Cogmind - Beta 10.2 @@@ ROGUE MODE // 2020.12.16 @ 05:30:19 Player: WeirdFoe Result: Destroyed by G-34 Mercenary with Small Laser Performance ------------- Evolutions (0) 0 Regions Visited (1) 200 Robots Destroyed (0) 0 Value Destroyed (0) 0 Prototype IDs (0) 0 Alien Tech Used (0) 0 Bonus (0) 0 TOTAL SCORE: 200 Bonus ------- None Cogmind --------- Core Integrity 0/250 Matter 290/300 Energy 97/100 System Corruption 2% Temperature Cool (6) Movement Rolling (100) Ox2 Location -10/Materials Parts ------- > --- POWER (1) -------- (None) > --- PROPULSION (2) --- Wheel > --- UTILITY (2) ------ Medium Storage Unit Large Storage Unit > --- WEAPON (2) ------- (None) > --- INVENTORY (14) --- Light Ion Engine Aluminum Leg Aluminum Leg Power Shielding Tractor Beam Peak State ------------ > --- POWER ------------ Ion Engine > --- PROPULSION ------- Compact Wheel > --- UTILITY ---------- Medium Storage Unit Large Storage Unit > --- WEAPON ----------- (None) > --- INVENTORY -------- Light Ion Engine Aluminum Leg Aluminum Leg Wheel [Rating: 4] Favorites ----------- Power Ion Engine Engine Ion Engine Propulsion Compact Wheel Wheel Compact Wheel Utility Large Storage Unit Storage Large Storage Unit Weapon None Build | -11 -10 ------- Run | Scr Mat Slots Evolved . | . . Power . | . . Propulsion . | . . Utility . | . . Weapon . | . . Parts Attached 6 | 3 3 Power 1 | 1 . Engine 1 | 1 . Core . | . . Reactor . | . . Propulsion 2 | 1 1 Treads . | . . Leg . | . . Wheel 2 | 1 1 Hover . | . . Flight . | . . Utility 3 | 1 2 Device . | . . Storage 3 | 1 2 Processor . | . . Hackware . | . . Protection . | . . Artifact . | . . Weapon . | . . Energy Gun . | . . Energy Cannon . | . . Ballistic Gun . | . . Ballistic Cannon . | . . Launcher . | . . Special Weapon . | . . Impact Weapon . | . . Slashing Weapon . | . . Piercing Weapon . | . . Special Melee Weapon . | . . Unidentified Prototypes . | . . Parts Lost 2 | . 2 Power 1 | . 1 Propulsion 1 | . 1 Utility . | . . Weapon . | . . Highest Loss Streak 2 | . 2 Average Slot Usage (%) 53 | . 53 Engine 13 | . 13 Wheel 13 | . 13 Storage 27 | . 27 Naked Turns . | . . Heaviest Build 29 | 9 29 Greatest Support 16 | 16 16 Greatest Overweight (x) 7 | 1 7 Average Overweight (x) . | . 1 Largest Inventory Capacity 14 | 6 14 Average Capacity 11 | 5 13 Most Carried 6 | 4 6 Average Carried 4 | 2 4 Final Capacity 14 | 6 14 Final Carried 5 | 4 5 Class Distribution -------------------- 100% | Mutant Dominant Class ---------------- Mutant | -10/Materials Resources | -11 -10 ----------- Run | Scr Mat Matter Collected 250 | 196 54 Remotely . | . . Salvage Created . | . . Parts . | . . Haulers Intercepted . | . . Recyclers Shooed . | . . Parts Field Recycled . | . . Retrieved Matter . | . . Parts Self-Destructed . | . . Prevented . | . . Kills | -11 -10 ------- Run | Scr Mat Combat Hostiles Destroyed . | . . Classes Destroyed . | . . Best Kill Streak . | . . Combat Bots Only . | . . Max Kills in Single Turn . | . . Gunslinging . | . . Exploded . | . . Melee . | . . Uniques/NPCs Destroyed . | . . Combat | -11 -10 -------- Run | Scr Mat Damage Taken 514 | . 514 Core 253 | . 253 Absorbed by Shields . | . . Core Remaining (%) 100 | 100 . Volleys Fired . | . . Largest . | . . Hottest . | . . Shots Fired . | . . Gun . | . . Cannon . | . . Launcher . | . . Special . | . . Kinetic . | . . Thermal . | . . Explosive . | . . Electromagnetic . | . . Robot Hit Streak . | . . Robot Miss Streak . | . . Penetration Max . | . . Secondary Targets . | . . Shots Hit Robots . | . . Core Hits 1 | . 1 Critical Hits . | . . Critical Kills . | . . Critical Parts Destroyed . | . . Melee Attacks . | . . Impact . | . . Slashing . | . . Piercing . | . . Sneak Attacks . | . . Combat Hostiles . | . . Follow-up Attacks . | . . Damage Inflicted 28 | . 28 Guns . | . . Cannons . | . . Explosions . | . . Melee . | . . Ramming 28 | . 28 Kinetic . | . . Thermal . | . . Explosive . | . . Electromagnetic . | . . Impact . | . . Slashing . | . . Piercing . | . . Highest Corruption 2 | . 2 Average Corruption 2 | . 2 Corruption Purged . | . . Effects 1 | . 1 Data Loss (minor) 1 | . 1 Overload Shots . | . . Overflow Damage . | . . Projectiles . | . . Explosions . | . . Melee . | . . Knockbacks . | . . Impact . | . . Kinetic . | . . Secondary . | . . Self-Inflicted Damage 14 | . 14 Shots . | . . Rammed 5 | . 5 Targets Rammed 5 | . 5 Kicked . | . . Crushed . | . . Highest Temperature . | . . Average Temperature . | . . Received Heat Transfer 90 | . 90 Siege Activations . | . . Robots Corrupted . | . . Combat Hostiles . | . . Parts Fried . | . . Impact Corruptions . | . . Robots Melted . | . . Combat Hostiles . | . . Parts Melted . | . . Heat Transferred . | . . Parts Sabotaged . | . . Parts Stolen . | . . Parts Stripped . | . . Power Chain Reactions . | . . Missiles Intercepted . | . . Alert | -11 -10 ------- Run | Scr Mat Peak Influence 15 | . 15 Initial . | . . Average 10 | . 13 Maximum Alert Level . | . . Low Security (%) 100 | 100 100 Level 1 . | . . Level 2 . | . . Level 3 . | . . Level 4 . | . . Level 5 . | . . High Security . | . . Max Security . | . . Squads Dispatched 3 | . 3 Investigation 1 | . 1 Extermination . | . . Reinforcement 2 | . 2 Assault . | . . Garrison . | . . Intercept . | . . Construction Impeded . | . . Haulers Reinforced . | . . Stealth | -11 -10 --------- Run | Scr Mat Distress Signals 1 | . 1 Communications Jammed . | . . Distress Signals . | . . Times Spotted 15 | . 15 Peak Tracking Total 12 | . 12 Tactical Retreats . | . . Traps | -11 -10 ------- Run | Scr Mat Traps Triggered 1 | . 1 Indirectly . | . . Trap Hack Attempts . | . . Triggered . | . . Disarmed . | . . Reprogrammed . | . . Reused . | . . Traps Extracted . | . . Installed . | . . Triggered . | . . Machines | -11 -10 ---------- Run | Scr Mat Machines Disabled . | . . Max in Single Turn . | . . Machines Sabotaged . | . . Garrisons Compromised . | . . Overloaded Fab Kills . | . . Fab Network Shutdowns . | . . Hacking | -11 -10 --------- Run | Scr Mat Machines Accessed 1 | . 1 Terminals 1 | . 1 Fabricators . | . . Repair Stations . | . . Recycling Units . | . . Scanalyzers . | . . Garrison Access . | . . Total Hacks 2 | . 2 Successful 1 | . 1 Failed 1 | . 1 Catastrophic . | . . Database Lockouts . | . . Manual . | . . Terminals 2 | . 2 Fabricators . | . . Repair Stations . | . . Recycling Units . | . . Scanalyzers . | . . Garrison Access . | . . Terminal Hacks 1 | . 1 Alert Level 1 | . 1 Fabricator Hacks . | . . Repair Station Hacks . | . . Recycling Unit Hacks . | . . Scanalyzer . | . . Garrison Access Hacks . | . . Unauthorized Hacks . | . . Terminals . | . . Fabricators . | . . Repair Stations . | . . Recycling Units . | . . Scanalyzers . | . . Garrison Access . | . . Data Cores Recovered . | . . Used . | . . Hacking Detections . | . . Full Trace Events . | . . Feedback Events . | . . Feedback Blocked . | . . Robot Schematics Acquired . | . . Robots Built . | . . Matter . | . . Time . | . . Total Robot Build Rating . | . . Part Schematics Acquired . | . . Parts Built . | . . Matter . | . . Time . | . . Total Part Build Rating . | . . Parts Repaired . | . . Time . | . . Parts Recycled . | . . Recycled Matter . | . . Retrieved Matter . | . . Retrieved Components . | . . Parts Scanalyzed . | . . Part Schematics Acquired . | . . Parts Damaged . | . . Bothacking | -11 -10 ------------ Run | Scr Mat Used RIF Installer . | . . Robots Hacked . | . . Non-combat . | . . Combat . | . . Robot Hacks Applied . | . . Relay Couplers Released . | . . Robots Rewired . | . . Allies Hacked . | . . Hacks Repelled . | . . Allies | -11 -10 -------- Run | Scr Mat Total Allies . | . . Largest Group . | . . Highest-Rated Group . | . . Highest-Rated Ally . | . . Total Orders . | . . Ally Attacks . | . . Total Damage . | . . Kills . | . . Allies Corrupted . | . . Allies Melted . | . . Intel | -11 -10 ------- Run | Scr Mat Robot Analysis Total . | . . Derelict Logs Recovered . | . . Drone Launches . | . . Drone Recoveries . | . . Exploration | -11 -10 ------------- Run | Scr Mat Turns Passed 186 | 47 139 Spaces Moved 153 | 40 113 Core 5 | 4 1 Treads . | . . Legs . | . . Wheels 148 | 36 112 Hover . | . . Flight . | . . Fastest Speed 50 | 50 100 Average Speed 108 | 97 111 Slowest Speed 400 | 100 400 Overloaded Moves . | . . Propulsion Burnouts . | . . Robots Hopped . | . . Cave-ins Triggered . | . . Exploration Rate (%) 17 | 4 30 Regions Visited 1 Branch Regions . Pre-discovered Areas . | . . Known Exits Taken . | . . Unknown Exits Taken 1 | 1 . Scrap Searched . | . . Spaces Dug . | . . Terrain Destroyed . | . . Melee . | . . Projectile . | . . AOE . | . . Terrain Rammed . | . . Walls Destroyed . | . . Machines Disabled . | . . Actions | -11 -10 --------- Run | Scr Mat Total 170 | 46 124 Wait . | . . Move 152 | 39 113 Hop . | . . Pick Up 6 | 4 2 Fast Attach 5 | 3 2 Attach 1 | . 1 Detach . | . . Swap . | . . Drop 1 | . 1 Fire . | . . Melee . | . . Ram 5 | . 5 Kick . | . . Crush . | . . Escape Stasis . | . . Rewire . | . . Trap . | . . Miscellaneous . | . . Route ------- -11/Scrapyard -10/Materials History --------- Turn | Location | Event 8 | -11/Scrapyard | Discovered new exit (range 15) 48 | -11/Scrapyard | Entered Materials 180 | -10/Materials | Core integrity fell below 50% 186 | -10/Materials | Core integrity fell below 20% 187 | -10/Materials | Destroyed by G-34 Mercenary with Small Laser Last Messages --------------- 00078_ K-01 Serf collects debris. 00113_ Acquired Tractor Beam. 00118_ Acquired 54 matter. 00123_ Connecting with Terminal... 00123_ Current location identified: Materials >>Alert(Check) Current Alert Level: Low Security 00127_ Triggered Alarm Trap. 00127_ An alarm sounds. 00127_ ALERT: Alarm triggered, dispatching investigation squad. 00143_ Acquired Power Shielding. 00149_ Slammed into G-34 Mercenary. 00160_ Destabilizing: System corrupted (+2). 00161_ Slammed into G-34 Mercenary. 00162_ Slammed into A-02 Transporter. 00164_ A-02 Transporter sends out distress signal. 00165_ K-01 Serf collects debris. 00172_ Ion Engine destroyed. 00178_ System corrupted: Component data lost. 00178_ Com. Wheel destroyed. Map ----- +----------------------------------------------------+ | ?????#"" """ #????????# ???????? | | ???????# ########?# """ ?????????? | | ??????## ## ### """ #??????????? | | " " T """ #??????????# | | ? "R" "" [ #??????????# | | ? """ #??????????? | | ??#######+######## ######### #??????????? | | ?????????????????#######????#####+######???????# | | ????????????????????????????# #???????# | | ????????????????????????????# #???????# | | ???????????????????????? ?+ #???????# | | ???????????????????????# ?# ######### | | ???????????????????????# ?# + | | ???????????????????????# ## ######### | | ???????????????????????+ + # # | | ???????????????????????# ############# % T + | | ???????????????????????# #??# #?# # | | ???????????????????????# #??# """ #?# # | | ???????????????????????# #??#[ """ #?######### | | ???????????????????????# #??# """ #????######+# | | ???????????????????????# #??# #????# | | ???????????????????#???# #???? ?????# | | ??????????????????## ### #######+######## | | ??????????# "" # s %# | | ??????????? s /s s a g s %/% | | ??????????????????#s s@ gg #%""" "" | | ??????????????????# ################### # """ "" | | ????????????????????????????????????????# # """ "" | | ????????????????????????????????????????#/######## | | ???????????????????????????????????????? ??????? | | ???????????????????????????????????????? ??????? | | ???????????????????????????????????????? ??????? | | ???????????????????????????????????????? #?????? | | ???????????????????????????????????????? #?????? | | ???????????????????????????????????????? +?????? | | ????????????????????????????????????????" #?????? | | ????????????????????????????????????????"" #?????? | | ?????????????????????????????????????????" #?????? | | ?????????????????????????????????????????? ??????? | | ?????????????????????????????????????????????????? | | ?????????????????????????????????????????????????? | | ?????????????????????????????????????????????????? | | ?????????????????????????????????????????????????? | | ?????????????????????????????????????????????????? | | ?????????????????????????????????????????????????? | | ?????????????????????????????????????????????????? | | ?????????????????????????????????????????????????? | | ?????????????????????????????????????????????????? | | ?????????????????????????????????????????????????? | | ?????????????????????????????????????????????????? | +----------------------------------------------------+ Best States ------------- Heat Dissipation 25 Energy Generation 10 Energy Capacity 250 Matter Stores 300 Matter Capacity 300 Sight Range 16 Terrain Scan Density 10 Evasion (%) 40 Item Schematics ----------------- None Robot Schematics ------------------ None Fabricated ------------ Nothing Alien Tech Used ----------------- None Achievements -------------- None Challenges ------------ None Game ------ Seed DiametricTractorLeg Manual? 0 Play Time 00:04:33 Cumulative 19.4 hours Start 2020.12.16 @ 05:27:24 End 2020.12.16 @ 05:30:19 Sessions 1 Manual Loads 0 Difficulty Rogue Special Mode None Game No. 57 Rogue 57 Adventurer 0 Explorer 0 Win Type - Total 0 Types 0/0/0/0/0/0/0/0/0 Lore% 20 Gallery% 31 Achievement% 21 Wizard Run 0 Options --------- ASCII 0 Keyboard 0 Movement Numpad Keybinds 0 Fullscreen 1 Font 18/Terminus Map View 76x50 Tactical HUD 1 Map Filters NONE Filters NONE Steam 1 RUN: b1e91e6c-a5f1-430f-9585-86eae8228a84